[Event "Titled Tuesday Blitz July 20 2021"]
[White "Bakalchuk, Johnatan"]
[Black "DieHardCuban"]
[WhiteFideId "2810301"]
[WhiteElo "2507"]
[BlackElo "2461"]
[Result "1-0"]
[Round "05"]
[TimeControl "180+1"]
[Date "2021.07.21"]
[WhiteClock "0:01:21"]
[BlackClock "0:00:13"]

1. d4 {[%clk 0:03:00]}  Nf6 {[%clk 0:02:57]} 2. Nc3 {[%clk 0:02:58]}  d5 {[%clk 0:02:55]} 3. Bf4 {[%clk 0:02:58]}  c6 {[%clk 0:02:50]} 4. Qd2 {[%clk 0:02:58]}  g6 {[%clk 0:02:21]} 5. f3 {[%clk 0:02:56]}  Bg7 {[%clk 0:02:21]} 6. Bh6 {[%clk 0:02:56]}  O-O {[%clk 0:02:20]} 7. O-O-O {[%clk 0:02:54]}  b5 {[%clk 0:02:19]} 8. Bxg7 {[%clk 0:02:52]}  Kxg7 {[%clk 0:02:19]} 9. e4 {[%clk 0:02:52]}  b4 {[%clk 0:02:17]} 10. e5 {[%clk 0:02:52]}  bxc3 {[%clk 0:02:15]} 11. exf6+ {[%clk 0:02:53]}  exf6 {[%clk 0:02:16]} 12. Qxc3 {[%clk 0:02:54]}  Nd7 {[%clk 0:02:07]} 13. g4 {[%clk 0:02:54]}  Rb8 {[%clk 0:02:02]} 14. h4 {[%clk 0:02:54]}  Re8 {[%clk 0:01:58]} 15. h5 {[%clk 0:02:54]}  g5 {[%clk 0:01:54]} 16. h6+ {[%clk 0:02:52]}  Kg8 {[%clk 0:01:54]} 17. Ne2 {[%clk 0:02:52]}  Qc7 {[%clk 0:01:53]} 18. Rg1 {[%clk 0:02:42]}  Nb6 {[%clk 0:01:49]} 19. b3 {[%clk 0:02:40]}  Bd7 {[%clk 0:01:43]} 20. Qd2 {[%clk 0:02:30]}  Qd6 {[%clk 0:01:40]} 21. Qa5 {[%clk 0:02:22]}  Re3 {[%clk 0:01:31]} 22. f4 {[%clk 0:02:23]}  gxf4 {[%clk 0:01:25]} 23. g5 {[%clk 0:02:24]}  f5 {[%clk 0:01:25]} 24. Rd2 {[%clk 0:02:20]}  f3 {[%clk 0:01:10]} 25. Ng3 {[%clk 0:02:04]}  Re1+ {[%clk 0:01:09]} 26. Rd1 {[%clk 0:02:04]}  Qf4+ {[%clk 0:01:08]} 27. Qd2 {[%clk 0:02:04]}  Rxd1+ {[%clk 0:00:53]} 28. Kxd1 {[%clk 0:02:04]}  Qg4 {[%clk 0:00:51]} 29. Qf2 {[%clk 0:01:43]}  Re8 {[%clk 0:00:26]} 30. Bd3 {[%clk 0:01:40]}  f4 {[%clk 0:00:23]} 31. Nf5 {[%clk 0:01:30]}  Bxf5 {[%clk 0:00:22]} 32. Rxg4 {[%clk 0:01:29]}  Bxg4 {[%clk 0:00:21]} 33. Kd2 {[%clk 0:01:29]}  Nc8 {[%clk 0:00:20]} 34. Qh2 {[%clk 0:01:29]}  Nd6 {[%clk 0:00:16]} 35. Qxf4 {[%clk 0:01:28]}  Bh5 {[%clk 0:00:14]} 36. Qxd6 {[%clk 0:01:23]}  f2 {[%clk 0:00:13]} 37. Qf4 {[%clk 0:01:21]} 1-0


[Site "https://www.chess.com"]

[Event "Titled Tuesday Blitz July 20 2021"]
[White "Batsuren, Dambasuren"]
[Black "Huynh, Ngoc Thuy Linh"]
[WhiteFideId "4902920"]
[BlackFideId "12403334"]
[WhiteElo "2371"]
[BlackElo "1780"]
[Result "1-0"]
[Round "05"]
[TimeControl "180+1"]
[Date "2021.07.21"]
[WhiteClock "0:01:26"]
[BlackClock "0:00:59"]

1. c4 {[%clk 0:03:00]}  Nf6 {[%clk 0:03:00]} 2. Nc3 {[%clk 0:03:01]}  e6 {[%clk 0:02:58]} 3. e4 {[%clk 0:03:01]}  d5 {[%clk 0:02:57]} 4. e5 {[%clk 0:03:01]}  d4 {[%clk 0:02:58]} 5. exf6 {[%clk 0:03:02]}  dxc3 {[%clk 0:02:58]} 6. bxc3 {[%clk 0:03:03]}  gxf6 {[%clk 0:02:53]} 7. d4 {[%clk 0:03:03]}  b6 {[%clk 0:02:45]} 8. Qf3 {[%clk 0:03:01]}  c6 {[%clk 0:02:45]} 9. Bd3 {[%clk 0:03:01]}  Bb7 {[%clk 0:02:45]} 10. Ne2 {[%clk 0:03:02]}  f5 {[%clk 0:02:42]} 11. O-O {[%clk 0:02:53]}  Qc7 {[%clk 0:02:38]} 12. Re1 {[%clk 0:02:51]}  Nd7 {[%clk 0:02:34]} 13. Bf4 {[%clk 0:02:49]}  Bd6 {[%clk 0:02:34]} 14. Bxd6 {[%clk 0:02:46]}  Qxd6 {[%clk 0:02:35]} 15. Rab1 {[%clk 0:02:44]}  O-O-O {[%clk 0:02:30]} 16. Qf4 {[%clk 0:02:29]}  Nf6 {[%clk 0:02:12]} 17. Qh4 {[%clk 0:02:07]}  Ng4 {[%clk 0:02:02]} 18. Ng3 {[%clk 0:01:57]}  Kb8 {[%clk 0:01:41]} 19. h3 {[%clk 0:01:48]}  h5 {[%clk 0:01:15]} 20. c5 {[%clk 0:01:39]}  Qd5 {[%clk 0:01:07]} 21. hxg4 {[%clk 0:01:34]}  hxg4 {[%clk 0:01:05]} 22. Qf6 {[%clk 0:01:34]}  Rh7 {[%clk 0:01:00]} 23. Re5 {[%clk 0:01:26]}  Qxa2 {[%clk 0:00:59]} 24. Qxd8+ {[%clk 0:01:26]} 1-0


[Site "https://www.chess.com"]

[Event "Titled Tuesday Blitz July 20 2021"]
[White "Bortnyk, Olexandr"]
[Black "Siva Mahadevan"]
[WhiteFideId "14120828"]
[BlackFideId "25043153"]
[WhiteElo "2723"]
[BlackElo "2203"]
[Result "1-0"]
[Round "05"]
[TimeControl "180+1"]
[Date "2021.07.20"]
[WhiteClock "0:00:06"]
[BlackClock "0:00:13"]

1. e4 {[%clk 0:03:00]}  c5 {[%clk 0:02:58]} 2. c3 {[%clk 0:03:00]}  e5 {[%clk 0:02:57]} 3. Nf3 {[%clk 0:03:00]}  Nc6 {[%clk 0:02:58]} 4. Bc4 {[%clk 0:03:00]}  Nf6 {[%clk 0:02:57]} 5. d3 {[%clk 0:02:43]}  Be7 {[%clk 0:02:56]} 6. O-O {[%clk 0:02:36]}  O-O {[%clk 0:02:56]} 7. h3 {[%clk 0:02:24]}  d6 {[%clk 0:02:56]} 8. a4 {[%clk 0:02:24]}  Be6 {[%clk 0:02:43]} 9. Na3 {[%clk 0:02:24]}  d5 {[%clk 0:02:28]} 10. exd5 {[%clk 0:02:22]}  Nxd5 {[%clk 0:02:23]} 11. Re1 {[%clk 0:02:21]}  Bf6 {[%clk 0:02:19]} 12. Ba2 {[%clk 0:01:33]}  Re8 {[%clk 0:02:06]} 13. Nc4 {[%clk 0:01:33]}  Nb6 {[%clk 0:01:44]} 14. Nxb6 {[%clk 0:01:24]}  Qxb6 {[%clk 0:01:34]} 15. Bxe6 {[%clk 0:01:25]}  Rxe6 {[%clk 0:01:34]} 16. Nd2 {[%clk 0:01:21]}  Rd8 {[%clk 0:01:32]} 17. Ne4 {[%clk 0:01:20]}  Be7 {[%clk 0:01:32]} 18. Qf3 {[%clk 0:01:11]}  Qa6 {[%clk 0:01:20]} 19. Bg5 {[%clk 0:00:39]}  Bxg5 {[%clk 0:00:27]} 20. Nxg5 {[%clk 0:00:37]}  Re7 {[%clk 0:00:28]} 21. Re3 {[%clk 0:00:30]}  Qb6 {[%clk 0:00:26]} 22. Re2 {[%clk 0:00:19]}  Qb3 {[%clk 0:00:19]} 23. Ne4 {[%clk 0:00:16]}  Qd5 {[%clk 0:00:19]} 24. Re3 {[%clk 0:00:16]}  b6 {[%clk 0:00:18]} 25. Rae1 {[%clk 0:00:14]}  Na5 {[%clk 0:00:18]} 26. Qh5 {[%clk 0:00:12]}  Qc6 {[%clk 0:00:16]} 27. Rg3 {[%clk 0:00:12]}  g6 {[%clk 0:00:15]} 28. Qh4 {[%clk 0:00:11]}  Qe6 {[%clk 0:00:12]} 29. Ng5 {[%clk 0:00:10]}  Qf6 {[%clk 0:00:12]} 30. Qxh7+ {[%clk 0:00:09]}  Kf8 {[%clk 0:00:13]} 31. Rf3 {[%clk 0:00:07]}  Qg7 {[%clk 0:00:12]} 32. Rxf7+ {[%clk 0:00:05]}  Qxf7 {[%clk 0:00:11]} 33. Nxf7 {[%clk 0:00:05]}  Rxf7 {[%clk 0:00:12]} 34. Qh8+ {[%clk 0:00:05]}  Ke7 {[%clk 0:00:12]} 35. Qxe5+ {[%clk 0:00:05]}  Kd7 {[%clk 0:00:12]} 36. Qe6+ {[%clk 0:00:05]}  Kc7 {[%clk 0:00:13]} 37. Qxf7+ {[%clk 0:00:06]} 1-0


[Site "https://www.chess.com"]

[Event "Titled Tuesday Blitz July 20 2021"]
[White "Dang, Hoang Son"]
[Black "Von Buelow, Georg"]
[WhiteFideId "12402435"]
[BlackFideId "4620658"]
[WhiteElo "2248"]
[BlackElo "2246"]
[Result "1-0"]
[Round "05"]
[TimeControl "180+1"]
[Date "2021.07.21"]
[WhiteClock "0:02:33"]
[BlackClock "0:01:38"]

1. e4 {[%clk 0:02:59]}  c5 {[%clk 0:02:59]} 2. Nf3 {[%clk 0:02:58]}  d6 {[%clk 0:02:58]} 3. d4 {[%clk 0:02:58]}  cxd4 {[%clk 0:02:59]} 4. Nxd4 {[%clk 0:02:59]}  Nf6 {[%clk 0:02:59]} 5. Nc3 {[%clk 0:02:59]}  a6 {[%clk 0:02:59]} 6. Be3 {[%clk 0:02:59]}  Ng4 {[%clk 0:02:59]} 7. Qf3 {[%clk 0:02:57]}  Nxe3 {[%clk 0:02:54]} 8. Qxe3 {[%clk 0:02:58]}  g6 {[%clk 0:02:48]} 9. O-O-O {[%clk 0:02:58]}  Bg7 {[%clk 0:02:48]} 10. f4 {[%clk 0:02:52]}  O-O {[%clk 0:02:42]} 11. e5 {[%clk 0:02:49]}  Qa5 {[%clk 0:01:50]} 12. Nb3 {[%clk 0:02:44]}  Qc7 {[%clk 0:01:40]} 13. Nd5 {[%clk 0:02:40]}  Qd8 {[%clk 0:01:38]} 14. Nb6 {[%clk 0:02:33]} 1-0


[Site "https://www.chess.com"]

[Event "Titled Tuesday Blitz July 20 2021"]
[White "Dardha, Daniel"]
[Black "Perez Rodriguez, Luis Manuel"]
[WhiteFideId "240990"]
[BlackFideId "3503364"]
[WhiteElo "2489"]
[BlackElo "2429"]
[Result "1-0"]
[Round "05"]
[TimeControl "180+1"]
[Date "2021.07.21"]
[WhiteClock "0:00:43"]
[BlackClock "0:00:36"]

1. d4 {[%clk 0:02:59]}  d5 {[%clk 0:02:59]} 2. c4 {[%clk 0:02:58]}  c6 {[%clk 0:02:59]} 3. cxd5 {[%clk 0:02:55]}  cxd5 {[%clk 0:02:58]} 4. Nf3 {[%clk 0:02:56]}  Nc6 {[%clk 0:02:58]} 5. Nc3 {[%clk 0:02:57]}  Nf6 {[%clk 0:02:58]} 6. Bf4 {[%clk 0:02:56]}  a6 {[%clk 0:02:58]} 7. Rc1 {[%clk 0:02:56]}  Bf5 {[%clk 0:02:58]} 8. e3 {[%clk 0:02:55]}  e6 {[%clk 0:02:57]} 9. Qb3 {[%clk 0:02:55]}  Ra7 {[%clk 0:02:58]} 10. Be2 {[%clk 0:02:55]}  Bd6 {[%clk 0:02:53]} 11. Bxd6 {[%clk 0:02:54]}  Qxd6 {[%clk 0:02:54]} 12. O-O {[%clk 0:02:55]}  O-O {[%clk 0:02:48]} 13. Na4 {[%clk 0:02:55]}  b5 {[%clk 0:02:47]} 14. Nc5 {[%clk 0:02:54]}  Bg4 {[%clk 0:02:48]} 15. h3 {[%clk 0:02:49]}  Bxf3 {[%clk 0:02:46]} 16. Bxf3 {[%clk 0:02:50]}  e5 {[%clk 0:02:44]} 17. dxe5 {[%clk 0:02:46]}  Nxe5 {[%clk 0:02:40]} 18. Qd1 {[%clk 0:02:36]}  Rc7 {[%clk 0:02:20]} 19. b4 {[%clk 0:02:34]}  a5 {[%clk 0:02:19]} 20. a3 {[%clk 0:02:30]}  g6 {[%clk 0:01:53]} 21. Qd4 {[%clk 0:02:22]}  axb4 {[%clk 0:01:50]} 22. axb4 {[%clk 0:02:19]}  Nxf3+ {[%clk 0:01:45]} 23. gxf3 {[%clk 0:02:20]}  Ra8 {[%clk 0:01:45]} 24. Ra1 {[%clk 0:02:17]}  Rcc8 {[%clk 0:01:36]} 25. Kg2 {[%clk 0:02:15]}  h5 {[%clk 0:01:34]} 26. Rfd1 {[%clk 0:02:10]}  Kh7 {[%clk 0:01:29]} 27. Qd3 {[%clk 0:02:08]}  Qe5 {[%clk 0:01:24]} 28. Rxa8 {[%clk 0:02:02]}  Rxa8 {[%clk 0:01:22]} 29. f4 {[%clk 0:02:01]}  Qb2 {[%clk 0:01:15]} 30. Qxb5 {[%clk 0:01:57]}  Ra2 {[%clk 0:01:13]} 31. Rf1 {[%clk 0:01:51]}  d4 {[%clk 0:01:06]} 32. Nd3 {[%clk 0:01:36]}  Qe2 {[%clk 0:01:01]} 33. Qe5 {[%clk 0:01:26]}  Kg7 {[%clk 0:00:52]} 34. Nc5 {[%clk 0:01:22]}  dxe3 {[%clk 0:00:51]} 35. Ne4 {[%clk 0:01:15]}  Ra6 {[%clk 0:00:48]} 36. Ng5 {[%clk 0:00:47]}  Ra1 {[%clk 0:00:36]} 37. Qxa1 {[%clk 0:00:43]} 1-0


[Site "https://www.chess.com"]

[Event "Titled Tuesday Blitz July 20 2021"]
[White "De Silva, L M S T"]
[Black "Ahmadzada, Ahmad"]
[WhiteFideId "9953698"]
[BlackFideId "13413007"]
[WhiteElo "1621"]
[BlackElo "2226"]
[Result "0-1"]
[Round "05"]
[TimeControl "180+1"]
[Date "2021.07.20"]
[WhiteClock "0:00:06"]
[BlackClock "0:00:21"]

1. e4 {[%clk 0:03:00]}  d5 {[%clk 0:02:59]} 2. exd5 {[%clk 0:03:00]}  Qxd5 {[%clk 0:03:00]} 3. Nc3 {[%clk 0:03:00]}  Qd8 {[%clk 0:03:01]} 4. Nf3 {[%clk 0:03:00]}  Nf6 {[%clk 0:03:01]} 5. d4 {[%clk 0:03:01]}  Bg4 {[%clk 0:03:00]} 6. Be2 {[%clk 0:03:02]}  e6 {[%clk 0:03:00]} 7. O-O {[%clk 0:03:02]}  Be7 {[%clk 0:03:00]} 8. h3 {[%clk 0:03:01]}  Bxf3 {[%clk 0:03:00]} 9. Bxf3 {[%clk 0:03:02]}  c6 {[%clk 0:03:01]} 10. Ne2 {[%clk 0:03:02]}  O-O {[%clk 0:03:01]} 11. c3 {[%clk 0:03:02]}  Nbd7 {[%clk 0:03:01]} 12. Bf4 {[%clk 0:03:02]}  Nd5 {[%clk 0:03:00]} 13. Bh2 {[%clk 0:03:02]}  Qb6 {[%clk 0:02:59]} 14. Qd2 {[%clk 0:03:01]}  Rad8 {[%clk 0:02:59]} 15. Bxd5 {[%clk 0:02:53]}  cxd5 {[%clk 0:02:57]} 16. Nf4 {[%clk 0:02:54]}  Qc6 {[%clk 0:02:55]} 17. Nd3 {[%clk 0:02:53]}  b5 {[%clk 0:02:54]} 18. Rfe1 {[%clk 0:02:49]}  a5 {[%clk 0:02:53]} 19. Re3 {[%clk 0:02:49]}  Bg5 {[%clk 0:02:51]} 20. Bf4 {[%clk 0:02:48]}  Bxf4 {[%clk 0:02:44]} 21. Nxf4 {[%clk 0:02:49]}  Nf6 {[%clk 0:02:40]} 22. Rae1 {[%clk 0:02:45]}  Rb8 {[%clk 0:02:35]} 23. Re5 {[%clk 0:02:44]}  b4 {[%clk 0:02:32]} 24. Qd3 {[%clk 0:02:41]}  bxc3 {[%clk 0:02:29]} 25. bxc3 {[%clk 0:02:42]}  Rb2 {[%clk 0:02:25]} 26. Nh5 {[%clk 0:02:08]}  Ne8 {[%clk 0:01:51]} 27. R1e3 {[%clk 0:02:02]}  Qb5 {[%clk 0:01:44]} 28. Qxb5 {[%clk 0:01:57]}  Rxb5 {[%clk 0:01:43]} 29. Kh2 {[%clk 0:01:54]}  g6 {[%clk 0:01:36]} 30. Nf4 {[%clk 0:01:48]}  Nd6 {[%clk 0:01:36]} 31. Re2 {[%clk 0:01:39]}  Rc8 {[%clk 0:01:29]} 32. R5e3 {[%clk 0:01:33]}  Rb1 {[%clk 0:01:24]} 33. Rc2 {[%clk 0:01:27]}  Nb5 {[%clk 0:01:20]} 34. Rd3 {[%clk 0:01:05]}  Na3 {[%clk 0:01:19]} 35. Re2 {[%clk 0:01:04]}  Rc1 {[%clk 0:01:13]} 36. Rb2 {[%clk 0:00:55]}  R1xc3 {[%clk 0:01:06]} 37. Rxc3 {[%clk 0:00:56]}  Rxc3 {[%clk 0:01:06]} 38. Rb8+ {[%clk 0:00:54]}  Kg7 {[%clk 0:01:06]} 39. Rb7 {[%clk 0:00:55]}  Kf6 {[%clk 0:01:02]} 40. Rb6 {[%clk 0:00:53]}  Kf5 {[%clk 0:00:49]} 41. g3 {[%clk 0:00:53]}  Ke4 {[%clk 0:00:49]} 42. Rb7 {[%clk 0:00:50]}  g5 {[%clk 0:00:42]} 43. Nh5 {[%clk 0:00:51]}  Kxd4 {[%clk 0:00:41]} 44. Rxf7 {[%clk 0:00:51]}  Rc2 {[%clk 0:00:41]} 45. Kg2 {[%clk 0:00:52]}  Nc4 {[%clk 0:00:41]} 46. Rxh7 {[%clk 0:00:52]}  Rxa2 {[%clk 0:00:39]} 47. h4 {[%clk 0:00:47]}  gxh4 {[%clk 0:00:39]} 48. gxh4 {[%clk 0:00:48]}  Ne3+ {[%clk 0:00:39]} 49. Kf3 {[%clk 0:00:46]}  Nf5 {[%clk 0:00:39]} 50. Nf4 {[%clk 0:00:47]}  e5 {[%clk 0:00:37]} 51. Ne6+ {[%clk 0:00:47]}  Kd3 {[%clk 0:00:36]} 52. h5 {[%clk 0:00:44]}  Ra1 {[%clk 0:00:32]} 53. Kg4 {[%clk 0:00:38]}  Nd4 {[%clk 0:00:30]} 54. Nxd4 {[%clk 0:00:27]}  Kxd4 {[%clk 0:00:30]} 55. Kf3 {[%clk 0:00:19]}  e4+ {[%clk 0:00:29]} 56. Kg2 {[%clk 0:00:19]}  Rb1 {[%clk 0:00:27]} 57. h6 {[%clk 0:00:19]}  Rb6 {[%clk 0:00:28]} 58. Rh8 {[%clk 0:00:19]}  a4 {[%clk 0:00:23]} 59. h7 {[%clk 0:00:18]}  Rh6 {[%clk 0:00:22]} 60. Ra8 {[%clk 0:00:18]}  Rxh7 {[%clk 0:00:22]} 61. Rxa4+ {[%clk 0:00:18]}  Kc3 {[%clk 0:00:22]} 62. Ra3+ {[%clk 0:00:18]}  Kb4 {[%clk 0:00:22]} 63. Rg3 {[%clk 0:00:18]}  d4 {[%clk 0:00:21]} 64. Kf1 {[%clk 0:00:18]}  Kc4 {[%clk 0:00:20]} 65. Ke2 {[%clk 0:00:18]}  Ra7 {[%clk 0:00:20]} 66. Rg8 {[%clk 0:00:18]}  Ra2+ {[%clk 0:00:20]} 67. Ke1 {[%clk 0:00:18]}  Kd3 {[%clk 0:00:21]} 68. Rg3+ {[%clk 0:00:16]}  e3 {[%clk 0:00:20]} 69. fxe3 {[%clk 0:00:16]}  dxe3 {[%clk 0:00:20]} 70. Kf1 {[%clk 0:00:16]}  Ra1+ {[%clk 0:00:20]} 71. Kg2 {[%clk 0:00:16]}  Kd2 {[%clk 0:00:21]} 72. Rg8 {[%clk 0:00:03]}  e2 {[%clk 0:00:20]} 73. Rd8+ {[%clk 0:00:04]}  Kc3 {[%clk 0:00:21]} 74. Rc8+ {[%clk 0:00:04]}  Kd4 {[%clk 0:00:21]} 75. Rd8+ {[%clk 0:00:05]}  Kc5 {[%clk 0:00:21]} 76. Re8 {[%clk 0:00:06]}  e1=Q {[%clk 0:00:21]} 0-1


[Site "https://www.chess.com"]

[Event "Titled Tuesday Blitz July 20 2021"]
[White "Derige Kane, Yan"]
[Black "Bartel, Mateusz"]
[WhiteFideId "20665431"]
[BlackFideId "1112635"]
[WhiteElo "2169"]
[BlackElo "2586"]
[Result "0-1"]
[Round "05"]
[TimeControl "180+1"]
[Date "2021.07.21"]
[WhiteClock "0:00:02"]
[BlackClock "0:00:57"]

1. d4 {[%clk 0:03:00]}  Nf6 {[%clk 0:02:59]} 2. Bg5 {[%clk 0:03:01]}  b6 {[%clk 0:02:52]} 3. Bxf6 {[%clk 0:02:21]}  exf6 {[%clk 0:02:53]} 4. e4 {[%clk 0:02:21]}  g6 {[%clk 0:02:32]} 5. h4 {[%clk 0:02:12]}  h5 {[%clk 0:02:31]} 6. c3 {[%clk 0:02:06]}  Bg7 {[%clk 0:02:25]} 7. Nd2 {[%clk 0:02:03]}  O-O {[%clk 0:02:20]} 8. g4 {[%clk 0:02:02]}  hxg4 {[%clk 0:02:21]} 9. Qxg4 {[%clk 0:02:02]}  d5 {[%clk 0:02:21]} 10. Qg3 {[%clk 0:01:22]}  dxe4 {[%clk 0:02:09]} 11. h5 {[%clk 0:01:20]}  Qd6 {[%clk 0:02:05]} 12. Qe3 {[%clk 0:01:00]}  Re8 {[%clk 0:01:59]} 13. hxg6 {[%clk 0:00:53]}  fxg6 {[%clk 0:02:00]} 14. Bc4+ {[%clk 0:00:32]}  Be6 {[%clk 0:01:57]} 15. O-O-O {[%clk 0:00:07]}  Bxc4 {[%clk 0:01:56]} 16. Nxc4 {[%clk 0:00:07]}  Qd5 {[%clk 0:01:56]} 17. b3 {[%clk 0:00:07]}  a5 {[%clk 0:01:28]} 18. Ne2 {[%clk 0:00:07]}  a4 {[%clk 0:01:28]} 19. Nf4 {[%clk 0:00:07]}  Qf5 {[%clk 0:01:28]} 20. b4 {[%clk 0:00:06]}  Nd7 {[%clk 0:01:19]} 21. Rdg1 {[%clk 0:00:05]}  Nf8 {[%clk 0:01:19]} 22. Qg3 {[%clk 0:00:03]}  Kf7 {[%clk 0:01:16]} 23. Ne3 {[%clk 0:00:02]}  Qg5 {[%clk 0:01:07]} 24. Qxg5 {[%clk 0:00:02]}  fxg5 {[%clk 0:01:08]} 25. Rxg5 {[%clk 0:00:03]}  Rad8 {[%clk 0:01:04]} 26. Rhg1 {[%clk 0:00:03]}  Rd6 {[%clk 0:01:04]} 27. Ng4 {[%clk 0:00:02]}  Nh7 {[%clk 0:01:01]} 28. Ne5+ {[%clk 0:00:02]}  Bxe5 {[%clk 0:01:01]} 29. Rxe5 {[%clk 0:00:01]}  g5 {[%clk 0:00:58]} 30. Rxe8 {[%clk 0:00:01]}  Kxe8 {[%clk 0:00:58]} 31. Nd5 {[%clk 0:00:01]}  Rxd5 {[%clk 0:00:58]} 32. Rg4 {[%clk 0:00:02]}  Nf6 {[%clk 0:00:57]} 33. Rg3 {[%clk 0:00:02]}  Rf5 {[%clk 0:00:57]} 0-1


[Site "https://www.chess.com"]

[Event "Titled Tuesday Blitz July 20 2021"]
[White "Diaz Perez, Michel Alejandro"]
[Black "Boidiya, Sidi"]
[WhiteFideId "3517179"]
[BlackFideId "19600100"]
[WhiteElo "2337"]
[BlackElo "2113"]
[Result "0-1"]
[Round "05"]
[TimeControl "180+1"]
[Date "2021.07.21"]
[WhiteClock "0:00:15"]
[BlackClock "0:00:03"]

1. e4 {[%clk 0:03:00]}  c5 {[%clk 0:02:59]} 2. Nf3 {[%clk 0:03:01]}  e6 {[%clk 0:02:57]} 3. d4 {[%clk 0:02:59]}  cxd4 {[%clk 0:02:58]} 4. Nxd4 {[%clk 0:02:58]}  Nf6 {[%clk 0:02:58]} 5. Nc3 {[%clk 0:02:58]}  Bb4 {[%clk 0:02:58]} 6. e5 {[%clk 0:02:50]}  Nd5 {[%clk 0:02:55]} 7. Bd2 {[%clk 0:02:32]}  Nxc3 {[%clk 0:02:49]} 8. bxc3 {[%clk 0:02:33]}  Be7 {[%clk 0:02:48]} 9. Qg4 {[%clk 0:02:33]}  Kf8 {[%clk 0:02:47]} 10. Bd3 {[%clk 0:02:31]}  d6 {[%clk 0:02:45]} 11. exd6 {[%clk 0:02:30]}  Qxd6 {[%clk 0:02:45]} 12. O-O {[%clk 0:02:28]}  Nc6 {[%clk 0:02:42]} 13. Rad1 {[%clk 0:01:59]}  Ne5 {[%clk 0:02:20]} 14. Qe2 {[%clk 0:01:55]}  Nxd3 {[%clk 0:02:19]} 15. cxd3 {[%clk 0:01:53]}  Bd7 {[%clk 0:02:19]} 16. Rfe1 {[%clk 0:01:46]}  Bf6 {[%clk 0:02:14]} 17. Be3 {[%clk 0:01:45]}  Rc8 {[%clk 0:02:11]} 18. Rc1 {[%clk 0:01:40]}  a6 {[%clk 0:02:00]} 19. Qf3 {[%clk 0:01:35]}  Bc6 {[%clk 0:01:55]} 20. Nxc6 {[%clk 0:01:34]}  Qxc6 {[%clk 0:01:56]} 21. Qf4 {[%clk 0:01:23]}  Ke7 {[%clk 0:01:44]} 22. Qb4+ {[%clk 0:01:18]}  Kd7 {[%clk 0:01:36]} 23. c4 {[%clk 0:01:17]}  Rhd8 {[%clk 0:01:35]} 24. d4 {[%clk 0:01:17]}  Be7 {[%clk 0:01:07]} 25. Qb1 {[%clk 0:01:14]}  g6 {[%clk 0:00:50]} 26. d5 {[%clk 0:01:13]}  exd5 {[%clk 0:00:48]} 27. cxd5 {[%clk 0:01:14]}  Qb5 {[%clk 0:00:48]} 28. Qe4 {[%clk 0:01:14]}  Bd6 {[%clk 0:00:42]} 29. Qg4+ {[%clk 0:01:08]}  f5 {[%clk 0:00:40]} 30. Qd4 {[%clk 0:01:07]}  Rxc1 {[%clk 0:00:34]} 31. Rxc1 {[%clk 0:01:05]}  Re8 {[%clk 0:00:31]} 32. g3 {[%clk 0:00:59]}  Be5 {[%clk 0:00:21]} 33. Qd2 {[%clk 0:00:45]}  Rc8 {[%clk 0:00:20]} 34. Rd1 {[%clk 0:00:34]}  Qb2 {[%clk 0:00:16]} 35. Qa5 {[%clk 0:00:31]}  Qb5 {[%clk 0:00:13]} 36. Qe1 {[%clk 0:00:26]}  Rc2 {[%clk 0:00:09]} 37. Bg5 {[%clk 0:00:18]}  Qe2 {[%clk 0:00:07]} 38. Qxe2 {[%clk 0:00:15]}  Rxe2 {[%clk 0:00:08]} 39. h4 {[%clk 0:00:15]}  Rxa2 {[%clk 0:00:06]} 40. h5 {[%clk 0:00:15]}  Ra1 {[%clk 0:00:04]} 41. Rxa1 {[%clk 0:00:14]}  Bxa1 {[%clk 0:00:05]} 42. h6 {[%clk 0:00:15]}  Be5 {[%clk 0:00:03]} 0-1


[Site "https://www.chess.com"]

[Event "Titled Tuesday Blitz July 20 2021"]
[White "Florescu, Codrut-Constantin"]
[Black "Roman, Rodrigo"]
[WhiteFideId "1202200"]
[BlackFideId "3701220"]
[WhiteElo "2243"]
[BlackElo "2043"]
[Result "0-1"]
[Round "05"]
[TimeControl "180+1"]
[Date "2021.07.21"]
[WhiteClock "0:00:34"]
[BlackClock "0:02:06"]

1. d4 {[%clk 0:03:00]}  a6 {[%clk 0:02:57]} 2. e4 {[%clk 0:03:00]}  b5 {[%clk 0:02:58]} 3. Nf3 {[%clk 0:02:57]}  Bb7 {[%clk 0:02:58]} 4. Bd3 {[%clk 0:02:56]}  Nf6 {[%clk 0:02:58]} 5. Qe2 {[%clk 0:02:55]}  e6 {[%clk 0:02:57]} 6. a4 {[%clk 0:02:41]}  b4 {[%clk 0:02:56]} 7. c4 {[%clk 0:02:40]}  bxc3 {[%clk 0:02:53]} 8. Nxc3 {[%clk 0:02:38]}  Be7 {[%clk 0:02:53]} 9. h4 {[%clk 0:02:35]}  d5 {[%clk 0:02:51]} 10. e5 {[%clk 0:02:34]}  Nfd7 {[%clk 0:02:51]} 11. Ng5 {[%clk 0:02:33]}  Nc6 {[%clk 0:02:48]} 12. Be3 {[%clk 0:02:30]}  Nxd4 {[%clk 0:02:44]} 13. Bxd4 {[%clk 0:02:27]}  c5 {[%clk 0:02:45]} 14. Qf3 {[%clk 0:01:44]}  Bxg5 {[%clk 0:02:40]} 15. hxg5 {[%clk 0:01:39]}  cxd4 {[%clk 0:02:41]} 16. g6 {[%clk 0:01:23]}  Nxe5 {[%clk 0:02:38]} 17. gxf7+ {[%clk 0:01:21]}  Kf8 {[%clk 0:02:35]} 18. Qe2 {[%clk 0:01:13]}  Nxd3+ {[%clk 0:02:34]} 19. Qxd3 {[%clk 0:01:14]}  dxc3 {[%clk 0:02:35]} 20. bxc3 {[%clk 0:01:14]}  Rc8 {[%clk 0:02:27]} 21. Rxh7 {[%clk 0:01:07]}  Rxh7 {[%clk 0:02:27]} 22. Qxh7 {[%clk 0:01:07]}  Kxf7 {[%clk 0:02:27]} 23. Kf1 {[%clk 0:01:03]}  Qf6 {[%clk 0:02:23]} 24. Kg1 {[%clk 0:00:56]}  d4 {[%clk 0:02:17]} 25. Rb1 {[%clk 0:00:51]}  Bd5 {[%clk 0:02:14]} 26. c4 {[%clk 0:00:39]}  Rxc4 {[%clk 0:02:08]} 27. f3 {[%clk 0:00:34]}  Qg6 {[%clk 0:02:06]} 0-1


[Site "https://www.chess.com"]